[Event "Early-Titled-Tuesday-Blitz-December-26-2023"]
[Site "Chess.com"]
[Date "2023.12.26"]
[Round "9"]
[White "Agibileg"]
[Black "Cheer_Down"]
[Result "1-0"]
[WhiteElo "2688"]
[BlackElo "2492"]
[TimeControl "180+1"]
[EndTime "9:43:11 PST"]
[Termination "Agibileg won by resignation"]

1. d4 {[%clk 0:02:58.7]} 1... d5 {[%clk 0:02:59.4]} 2. c4 {[%clk 0:02:58.2]}
2... e6 {[%clk 0:02:58.7]} 3. Nc3 {[%clk 0:02:57.6]} 3... Nf6 {[%clk 0:02:58.6]}
4. cxd5 {[%clk 0:02:57.9]} 4... exd5 {[%clk 0:02:58.5]} 5. Bg5 {[%clk
0:02:57.9]} 5... Be7 {[%clk 0:02:57.3]} 6. e3 {[%clk 0:02:57.8]} 6... c6 {[%clk
0:02:57.4]} 7. Bd3 {[%clk 0:02:57.7]} 7... Nbd7 {[%clk 0:02:56.6]} 8. Nge2
{[%clk 0:02:56.8]} 8... h6 {[%clk 0:02:56.7]} 9. Bf4 {[%clk 0:02:55.3]} 9... Nh5
{[%clk 0:02:56.5]} 10. Be5 {[%clk 0:02:55.4]} 10... Nxe5 {[%clk 0:02:53.5]} 11.
dxe5 {[%clk 0:02:56.3]} 11... g6 {[%clk 0:02:52.4]} 12. Qc2 {[%clk 0:02:55.8]}
12... Ng7 {[%clk 0:02:50.3]} 13. O-O-O {[%clk 0:02:55.5]} 13... Be6 {[%clk
0:02:36.9]} 14. Kb1 {[%clk 0:02:54.4]} 14... Qa5 {[%clk 0:02:31.9]} 15. Nd4
{[%clk 0:02:53.6]} 15... O-O-O {[%clk 0:02:30]} 16. Nb3 {[%clk 0:02:50.9]} 16...
Qc7 {[%clk 0:02:23.6]} 17. f4 {[%clk 0:02:50.4]} 17... Kb8 {[%clk 0:02:21.3]}
18. Na4 {[%clk 0:02:50]} 18... b6 {[%clk 0:02:19.2]} 19. Nd4 {[%clk 0:02:43.8]}
19... c5 {[%clk 0:02:04.1]} 20. Nxe6 {[%clk 0:02:40.7]} 20... Nxe6 {[%clk
0:02:00.3]} 21. Be2 {[%clk 0:02:38.4]} 21... d4 {[%clk 0:01:40.7]} 22. Bf3
{[%clk 0:02:38.8]} 22... dxe3 {[%clk 0:01:38.4]} 23. Qe4 {[%clk 0:02:38]} 23...
Rxd1+ {[%clk 0:01:13.2]} 24. Rxd1 {[%clk 0:02:38.9]} 24... Kc8 {[%clk
0:01:13.2]} 25. Qa8+ {[%clk 0:02:18.1]} 25... Qb8 {[%clk 0:01:12.7]} 26. Nxb6+
{[%clk 0:02:04.1]} 26... axb6 {[%clk 0:01:10]} 27. Qa6+ {[%clk 0:02:04.3]} 27...
Kc7 {[%clk 0:01:06.6]} 28. Qa4 {[%clk 0:01:44.1]} 28... Nd4 {[%clk 0:00:52.9]}
29. Rxd4 {[%clk 0:01:44.3]} 29... cxd4 {[%clk 0:00:52.8]} 30. Qc6+ {[%clk
0:01:44.7]} 30... Kd8 {[%clk 0:00:52.6]} 31. Bg4 {[%clk 0:01:45.4]} 31... Qc7
{[%clk 0:00:48.3]} 32. Qa8+ {[%clk 0:01:44.9]} 1-0

[Event "Early-Titled-Tuesday-Blitz-December-26-2023"]
[Site "Chess.com"]
[Date "2023.12.26"]
[Round "9"]
[White "AGW2016"]
[Black "PavelChernomordik"]
[Result "1-0"]
[WhiteElo "2562"]
[BlackElo "2421"]
[TimeControl "180+1"]
[EndTime "9:43:18 PST"]
[Termination "AGW2016 won by resignation"]

1. d4 {[%clk 0:03:00.9]} 1... g6 {[%clk 0:02:58.2]} 2. c4 {[%clk 0:03:01.1]}
2... Bg7 {[%clk 0:02:57.2]} 3. e4 {[%clk 0:03:01.4]} 3... Nc6 {[%clk 0:02:09.4]}
4. Nf3 {[%clk 0:02:54.8]} 4... d6 {[%clk 0:02:08]} 5. Nc3 {[%clk 0:02:54.5]}
5... Bg4 {[%clk 0:02:06.8]} 6. d5 {[%clk 0:02:54.1]} 6... Nd4 {[%clk 0:02:06.4]}
7. Be2 {[%clk 0:02:54.5]} 7... Nxe2 {[%clk 0:02:05.9]} 8. Qxe2 {[%clk
0:02:54.4]} 8... Nf6 {[%clk 0:02:05.4]} 9. h3 {[%clk 0:02:54.3]} 9... Bd7 {[%clk
0:02:03.9]} 10. O-O {[%clk 0:02:54.5]} 10... e5 {[%clk 0:02:02.3]} 11. Be3
{[%clk 0:02:55]} 11... O-O {[%clk 0:02:01.5]} 12. c5 {[%clk 0:02:55.5]} 12... a6
{[%clk 0:02:00.9]} 13. Nd2 {[%clk 0:02:55.5]} 13... Nh5 {[%clk 0:01:59.4]} 14.
Nc4 {[%clk 0:02:55]} 14... Bb5 {[%clk 0:01:51.1]} 15. cxd6 {[%clk 0:02:53.4]}
15... cxd6 {[%clk 0:01:50.6]} 16. Nxb5 {[%clk 0:02:51.4]} 16... axb5 {[%clk
0:01:50.2]} 17. Nb6 {[%clk 0:02:52.1]} 17... Nf4 {[%clk 0:01:44]} 18. Qxb5
{[%clk 0:02:28.7]} 18... Rb8 {[%clk 0:01:36.3]} 19. Kh2 {[%clk 0:02:23]} 19...
f5 {[%clk 0:01:28.7]} 20. Qd7 {[%clk 0:02:12.7]} 20... Qg5 {[%clk 0:01:26.3]}
21. g3 {[%clk 0:02:05.1]} 21... fxe4 {[%clk 0:01:22.8]} 22. gxf4 {[%clk
0:01:58]} 22... exf4 {[%clk 0:01:22]} 23. Rg1 {[%clk 0:01:57.9]} 23... Qe5
{[%clk 0:01:13.5]} 24. Bd2 {[%clk 0:01:48.1]} 24... Qd4 {[%clk 0:01:12.1]} 25.
Bc3 {[%clk 0:01:39.6]} 25... Rf7 {[%clk 0:00:59]} 26. Bxd4 {[%clk 0:01:37.3]}
26... Rxd7 {[%clk 0:00:58.2]} 27. Nxd7 {[%clk 0:01:38]} 27... Bxd4 {[%clk
0:00:57.7]} 28. Nxb8 {[%clk 0:01:38.3]} 28... Bxf2 {[%clk 0:00:56.4]} 29. Rgf1
{[%clk 0:01:38.9]} 29... Bg3+ {[%clk 0:00:55.2]} 30. Kg2 {[%clk 0:01:39.7]}
30... Kf7 {[%clk 0:00:51.9]} 31. Nd7 {[%clk 0:01:39.9]} 31... g5 {[%clk
0:00:50.8]} 32. Rae1 {[%clk 0:01:35.9]} 32... Bxe1 {[%clk 0:00:49.8]} 33. Rxe1
{[%clk 0:01:36.8]} 33... e3 {[%clk 0:00:49.5]} 34. Kf3 {[%clk 0:01:37.2]} 1-0

[Event "Early-Titled-Tuesday-Blitz-December-26-2023"]
[Site "Chess.com"]
[Date "2023.12.26"]
[Round "9"]
[White "AsaHoffmann"]
[Black "prime-morty"]
[Result "0-1"]
[WhiteElo "2344"]
[BlackElo "2533"]
[TimeControl "180+1"]
[EndTime "9:43:27 PST"]
[Termination "prime-morty won by resignation"]

1. d4 {[%clk 0:02:59.3]} 1... d5 {[%clk 0:02:55.2]} 2. Bg5 {[%clk 0:02:55.4]}
2... h6 {[%clk 0:02:54.7]} 3. Bh4 {[%clk 0:02:55.2]} 3... c5 {[%clk 0:02:54.5]}
4. e3 {[%clk 0:02:54]} 4... Qb6 {[%clk 0:02:53.6]} 5. b3 {[%clk 0:02:51.2]} 5...
cxd4 {[%clk 0:02:45]} 6. exd4 {[%clk 0:02:50.8]} 6... Nc6 {[%clk 0:02:44.8]} 7.
c3 {[%clk 0:02:50.3]} 7... Bf5 {[%clk 0:02:40.8]} 8. Bd3 {[%clk 0:02:49.2]} 8...
Bxd3 {[%clk 0:02:37.5]} 9. Qxd3 {[%clk 0:02:49.1]} 9... e6 {[%clk 0:02:37.7]}
10. Nf3 {[%clk 0:02:48.7]} 10... Be7 {[%clk 0:02:36.7]} 11. Bg3 {[%clk
0:02:48.5]} 11... Nf6 {[%clk 0:02:26]} 12. Nbd2 {[%clk 0:02:47.9]} 12... O-O
{[%clk 0:02:20.9]} 13. O-O {[%clk 0:02:47.4]} 13... Rac8 {[%clk 0:02:20.9]} 14.
h3 {[%clk 0:02:46.3]} 14... Nd7 {[%clk 0:02:20.9]} 15. a3 {[%clk 0:02:41.1]}
15... Qa6 {[%clk 0:02:20.8]} 16. Qxa6 {[%clk 0:02:37.8]} 16... bxa6 {[%clk
0:02:21.7]} 17. b4 {[%clk 0:02:35.9]} 17... Nd8 {[%clk 0:02:13.7]} 18. Rac1
{[%clk 0:02:34.9]} 18... Nb6 {[%clk 0:02:06]} 19. Ne5 {[%clk 0:02:32.4]} 19...
Bg5 {[%clk 0:01:57.3]} 20. f4 {[%clk 0:02:31.2]} 20... Bf6 {[%clk 0:01:57.9]}
21. Ng4 {[%clk 0:02:18.5]} 21... Nc4 {[%clk 0:01:49.8]} 22. Nxf6+ {[%clk
0:02:16.4]} 22... gxf6 {[%clk 0:01:49.7]} 23. Nxc4 {[%clk 0:02:15.4]} 23... Rxc4
{[%clk 0:01:50.1]} 24. Bh4 {[%clk 0:02:13.6]} 24... Kg7 {[%clk 0:01:49.3]} 25.
Rf3 {[%clk 0:02:12.8]} 25... f5 {[%clk 0:01:38.5]} 26. Rg3+ {[%clk 0:02:10.3]}
26... Kh7 {[%clk 0:01:38.7]} 27. Bxd8 {[%clk 0:02:03.4]} 27... Rxd8 {[%clk
0:01:38.2]} 28. Kf2 {[%clk 0:01:59.7]} 28... Rdc8 {[%clk 0:01:37.5]} 29. Rd3
{[%clk 0:01:58.1]} 29... a5 {[%clk 0:01:33.3]} 30. bxa5 {[%clk 0:01:39.8]} 30...
Ra4 {[%clk 0:01:32.6]} 31. Rb1 {[%clk 0:01:36.2]} 31... Rxa5 {[%clk 0:01:31.6]}
32. Rb7 {[%clk 0:01:35.6]} 32... Kg6 {[%clk 0:01:31.2]} 33. Ke2 {[%clk
0:01:28.6]} 33... Rxa3 {[%clk 0:01:31]} 34. Kd2 {[%clk 0:01:28.7]} 34... Ra2+
{[%clk 0:01:31]} 35. Ke3 {[%clk 0:01:28.4]} 35... Rxg2 {[%clk 0:01:31]} 36. Rxa7
{[%clk 0:01:27]} 36... Rb8 {[%clk 0:01:26]} 37. Rd2 {[%clk 0:01:13.1]} 37...
Rg3+ {[%clk 0:01:23.2]} 38. Kf2 {[%clk 0:01:09.3]} 38... Rxc3 {[%clk 0:01:20.4]}
39. Ra1 {[%clk 0:01:04.7]} 39... Rbb3 {[%clk 0:01:20]} 40. Rg1+ {[%clk
0:01:03.5]} 40... Kf6 {[%clk 0:01:20.5]} 0-1

[Event "Early-Titled-Tuesday-Blitz-December-26-2023"]
[Site "Chess.com"]
[Date "2023.12.26"]
[Round "9"]
[White "matagordo"]
[Black "noblerone"]
[Result "1-0"]
[WhiteElo "2277"]
[BlackElo "2511"]
[TimeControl "180+1"]
[EndTime "9:43:29 PST"]
[Termination "matagordo won by resignation"]

1. d4 {[%clk 0:03:00.9]} 1... d5 {[%clk 0:02:50.9]} 2. Bf4 {[%clk 0:03:00.6]}
2... Nf6 {[%clk 0:02:47.4]} 3. e3 {[%clk 0:03:00.4]} 3... e6 {[%clk 0:02:44.8]}
4. Nf3 {[%clk 0:03:00.5]} 4... c5 {[%clk 0:02:45.3]} 5. Nbd2 {[%clk 0:03:00]}
5... Bd6 {[%clk 0:02:42.4]} 6. Ne5 {[%clk 0:03:00.3]} 6... Nc6 {[%clk
0:02:35.8]} 7. c3 {[%clk 0:02:57]} 7... cxd4 {[%clk 0:02:34]} 8. exd4 {[%clk
0:02:35.1]} 8... O-O {[%clk 0:02:30]} 9. Bd3 {[%clk 0:02:34.4]} 9... Ne7 {[%clk
0:02:29.8]} 10. O-O {[%clk 0:02:28.7]} 10... Bd7 {[%clk 0:02:28.5]} 11. Nxf7
{[%clk 0:02:24.7]} 11... Rxf7 {[%clk 0:02:25.1]} 12. Bxd6 {[%clk 0:02:24.8]}
12... Ng6 {[%clk 0:02:20.4]} 13. Bxg6 {[%clk 0:02:21.9]} 13... hxg6 {[%clk
0:02:19.9]} 14. Re1 {[%clk 0:02:13.6]} 14... Qb6 {[%clk 0:02:13.3]} 15. Ba3
{[%clk 0:02:11.5]} 15... Re8 {[%clk 0:02:12.6]} 16. Nf3 {[%clk 0:02:11.4]} 16...
Ne4 {[%clk 0:02:00.4]} 17. Ne5 {[%clk 0:02:09.3]} 17... Nxf2 {[%clk 0:01:54.8]}
18. Nxd7 {[%clk 0:01:47.7]} 18... Qc7 {[%clk 0:01:49.5]} 19. Qa4 {[%clk
0:01:35.5]} 19... Ng4 {[%clk 0:01:39.2]} 20. Ne5 {[%clk 0:01:32.5]} 20... Nxe5
{[%clk 0:01:38.1]} 21. Rxe5 {[%clk 0:01:31.1]} 21... a6 {[%clk 0:01:37.7]} 22.
Qb4 {[%clk 0:01:30.2]} 22... Ref8 {[%clk 0:01:28.8]} 23. Qd6 {[%clk 0:01:20.6]}
23... Qc4 {[%clk 0:01:26.4]} 24. Qxe6 {[%clk 0:01:13]} 24... Kh7 {[%clk
0:01:20.1]} 25. Bxf8 {[%clk 0:01:09.8]} 25... Rxf8 {[%clk 0:01:19.3]} 26. Qh3+
{[%clk 0:00:55.1]} 26... Kg8 {[%clk 0:01:18.7]} 27. Rae1 {[%clk 0:00:54.6]}
27... Qa4 {[%clk 0:01:11.7]} 28. Qe6+ {[%clk 0:00:51.7]} 28... Kh7 {[%clk
0:01:11.3]} 29. R5e3 {[%clk 0:00:50.2]} 1-0

[Event "Early-Titled-Tuesday-Blitz-December-26-2023"]
[Site "Chess.com"]
[Date "2023.12.26"]
[Round "9"]
[White "ljuks68"]
[Black "severomorskij"]
[Result "0-1"]
[WhiteElo "2518"]
[BlackElo "2873"]
[TimeControl "180+1"]
[EndTime "9:43:45 PST"]
[Termination "severomorskij won on time"]

1. e4 {[%clk 0:03:00.9]} 1... c5 {[%clk 0:02:57.3]} 2. Nf3 {[%clk 0:03:00.9]}
2... Nc6 {[%clk 0:02:56.3]} 3. d4 {[%clk 0:03:01.5]} 3... cxd4 {[%clk
0:02:56.3]} 4. Nxd4 {[%clk 0:03:02.2]} 4... e5 {[%clk 0:02:57]} 5. Nb5 {[%clk
0:03:01.7]} 5... d6 {[%clk 0:02:57.4]} 6. c4 {[%clk 0:03:00.3]} 6... Be7 {[%clk
0:02:55.9]} 7. N1c3 {[%clk 0:02:59.4]} 7... a6 {[%clk 0:02:54.9]} 8. Na3 {[%clk
0:02:59.2]} 8... Be6 {[%clk 0:02:46.4]} 9. Bd3 {[%clk 0:02:54.8]} 9... Bg5
{[%clk 0:02:45]} 10. O-O {[%clk 0:02:52.4]} 10... h6 {[%clk 0:02:40.9]} 11. Nd5
{[%clk 0:02:51.1]} 11... Nge7 {[%clk 0:02:39.4]} 12. Nc2 {[%clk 0:02:45.2]}
12... O-O {[%clk 0:02:31.4]} 13. Nce3 {[%clk 0:02:33]} 13... Nd4 {[%clk
0:02:22.5]} 14. b3 {[%clk 0:02:25.9]} 14... Nxd5 {[%clk 0:02:17.4]} 15. cxd5
{[%clk 0:02:22.2]} 15... Bd7 {[%clk 0:02:17.3]} 16. Bb2 {[%clk 0:02:08.4]} 16...
b5 {[%clk 0:02:04.8]} 17. Bxd4 {[%clk 0:01:54]} 17... exd4 {[%clk 0:02:05.7]}
18. Nc2 {[%clk 0:01:54.4]} 18... Qb6 {[%clk 0:02:02.7]} 19. Qe2 {[%clk
0:01:19.4]} 19... Rac8 {[%clk 0:01:41.9]} 20. f4 {[%clk 0:01:06]} 20... Bf6
{[%clk 0:01:41.6]} 21. e5 {[%clk 0:01:06.1]} 21... Rfe8 {[%clk 0:01:41.5]} 22.
Qe4 {[%clk 0:00:49.6]} 22... g6 {[%clk 0:01:34.6]} 23. Kh1 {[%clk 0:00:18.7]}
23... dxe5 {[%clk 0:01:31.3]} 24. f5 {[%clk 0:00:06.8]} 24... g5 {[%clk
0:01:30.7]} 0-1

[Event "Early-Titled-Tuesday-Blitz-December-26-2023"]
[Site "Chess.com"]
[Date "2023.12.26"]
[Round "9"]
[White "adapodadei"]
[Black "JafarTheParrot"]
[Result "1-0"]
[WhiteElo "2735"]
[BlackElo "2514"]
[TimeControl "180+1"]
[EndTime "9:44:01 PST"]
[Termination "adapodadei won by resignation"]

1. g3 {[%clk 0:03:00.9]} 1... h5 {[%clk 0:02:57.7]} 2. Nf3 {[%clk 0:02:59.3]}
2... b5 {[%clk 0:02:53.4]} 3. a4 {[%clk 0:02:57.8]} 3... b4 {[%clk 0:02:52.5]}
4. d3 {[%clk 0:02:57.4]} 4... Bb7 {[%clk 0:02:51.6]} 5. e4 {[%clk 0:02:57.9]}
5... e6 {[%clk 0:02:48.5]} 6. a5 {[%clk 0:02:57.7]} 6... d5 {[%clk 0:02:45]} 7.
e5 {[%clk 0:02:57.7]} 7... c5 {[%clk 0:02:32]} 8. Bg2 {[%clk 0:02:57.1]} 8... a6
{[%clk 0:02:18.9]} 9. h4 {[%clk 0:02:55.7]} 9... Nc6 {[%clk 0:02:19]} 10. c4
{[%clk 0:02:48.5]} 10... dxc4 {[%clk 0:02:16.2]} 11. dxc4 {[%clk 0:02:48.6]}
11... Qxd1+ {[%clk 0:02:15.2]} 12. Kxd1 {[%clk 0:02:49.3]} 12... Nxe5 {[%clk
0:02:05.6]} 13. Nxe5 {[%clk 0:02:40.3]} 13... Bxg2 {[%clk 0:02:06.5]} 14. Re1
{[%clk 0:02:39.5]} 14... Bd6 {[%clk 0:01:53.2]} 15. Nd2 {[%clk 0:02:36.8]} 15...
Ne7 {[%clk 0:01:49.8]} 16. Nb3 {[%clk 0:02:32.8]} 16... Rc8 {[%clk 0:01:30.7]}
17. Nd3 {[%clk 0:02:29]} 17... Nf5 {[%clk 0:01:18.7]} 18. Kc2 {[%clk 0:02:28.8]}
18... Ke7 {[%clk 0:01:16]} 19. Bf4 {[%clk 0:02:24.5]} 19... Bxf4 {[%clk
0:01:14.7]} 20. Nxf4 {[%clk 0:02:11.9]} 20... Nd6 {[%clk 0:01:05.3]} 21. Nxg2
{[%clk 0:02:09.9]} 21... Nxc4 {[%clk 0:01:03.5]} 22. Nf4 {[%clk 0:02:01.7]}
22... Kf6 {[%clk 0:00:59]} 23. Rad1 {[%clk 0:01:58.4]} 23... Ne5 {[%clk
0:00:58.5]} 24. Nd2 {[%clk 0:01:54.5]} 24... g6 {[%clk 0:00:53.9]} 25. Ne4+
{[%clk 0:01:53.9]} 25... Ke7 {[%clk 0:00:53]} 26. Ng5 {[%clk 0:01:38.1]} 26...
Nc4 {[%clk 0:00:39.8]} 27. Nfxe6 {[%clk 0:01:22.4]} 27... Nxa5 {[%clk 0:00:35]}
28. Nf4+ {[%clk 0:01:15.4]} 28... Kf6 {[%clk 0:00:35.2]} 29. Rd6+ {[%clk
0:01:13.4]} 29... Kg7 {[%clk 0:00:35.1]} 30. Re7 {[%clk 0:01:07.7]} 1-0

[Event "Early-Titled-Tuesday-Blitz-December-26-2023"]
[Site "Chess.com"]
[Date "2023.12.26"]
[Round "9"]
[White "LeoWin2012"]
[Black "Schachmalanders"]
[Result "0-1"]
[WhiteElo "2222"]
[BlackElo "2368"]
[TimeControl "180+1"]
[EndTime "9:44:11 PST"]
[Termination "Schachmalanders won by resignation"]

1. e4 {[%clk 0:03:00.9]} 1... c5 {[%clk 0:02:59.5]} 2. Nf3 {[%clk 0:02:59.9]}
2... e6 {[%clk 0:02:59.1]} 3. c4 {[%clk 0:02:58.2]} 3... Nc6 {[%clk 0:02:57.3]}
4. d4 {[%clk 0:02:58.2]} 4... cxd4 {[%clk 0:02:55.1]} 5. Nxd4 {[%clk 0:02:59.1]}
5... Nf6 {[%clk 0:02:52.6]} 6. Nc3 {[%clk 0:02:58.9]} 6... Bc5 {[%clk
0:02:51.7]} 7. Nb3 {[%clk 0:02:55.2]} 7... Bb4 {[%clk 0:02:50]} 8. Bd3 {[%clk
0:02:52]} 8... O-O {[%clk 0:02:45.5]} 9. O-O {[%clk 0:02:51.3]} 9... a5 {[%clk
0:02:42.8]} 10. Bg5 {[%clk 0:02:41.8]} 10... a4 {[%clk 0:02:40.2]} 11. Nd2
{[%clk 0:02:39]} 11... a3 {[%clk 0:02:39.1]} 12. Rb1 {[%clk 0:02:32.2]} 12...
axb2 {[%clk 0:02:38]} 13. Ne2 {[%clk 0:02:30.1]} 13... Rxa2 {[%clk 0:02:23.8]}
14. Nf3 {[%clk 0:02:29.1]} 14... d6 {[%clk 0:02:20.3]} 15. Qb3 {[%clk
0:02:25.2]} 15... Ra3 {[%clk 0:02:18.8]} 16. Qc2 {[%clk 0:02:20.3]} 16... Ne5
{[%clk 0:02:15.5]} 17. Nxe5 {[%clk 0:02:16]} 17... dxe5 {[%clk 0:02:15.8]} 18.
Rfd1 {[%clk 0:02:15.5]} 18... h6 {[%clk 0:02:06.2]} 19. Bh4 {[%clk 0:02:12.1]}
19... Bc5 {[%clk 0:01:56.5]} 20. Rxb2 {[%clk 0:02:00]} 20... b6 {[%clk
0:01:46.2]} 21. Ng3 {[%clk 0:01:44.4]} 21... g5 {[%clk 0:01:44.3]} 22. Be2
{[%clk 0:01:32.9]} 22... Qe7 {[%clk 0:01:40.2]} 23. Bxg5 {[%clk 0:01:26.2]}
23... hxg5 {[%clk 0:01:39.2]} 24. Rb3 {[%clk 0:01:18.4]} 24... Rxb3 {[%clk
0:01:27.9]} 25. Qxb3 {[%clk 0:01:19.3]} 25... Bb7 {[%clk 0:01:28.4]} 26. Qf3
{[%clk 0:01:14.5]} 26... g4 {[%clk 0:01:18.2]} 27. Qd3 {[%clk 0:01:11.3]} 27...
Bd4 {[%clk 0:01:11.4]} 28. Nf1 {[%clk 0:01:04.7]} 28... Bxe4 {[%clk 0:01:06.9]}
29. Qg3 {[%clk 0:01:04.3]} 29... Qc5 {[%clk 0:01:03.1]} 30. h4 {[%clk
0:00:48.6]} 30... Kg7 {[%clk 0:00:45.5]} 31. Bxg4 {[%clk 0:00:47.9]} 31... Bxf2+
{[%clk 0:00:45.3]} 32. Qxf2 {[%clk 0:00:45.5]} 32... Qxf2+ {[%clk 0:00:45.6]}
33. Kxf2 {[%clk 0:00:45.9]} 33... Nxg4+ {[%clk 0:00:46.3]} 34. Kg3 {[%clk
0:00:46.4]} 34... f5 {[%clk 0:00:45]} 35. Rd8 {[%clk 0:00:43.6]} 35... Rxd8
{[%clk 0:00:44.1]} 0-1

[Event "Early-Titled-Tuesday-Blitz-December-26-2023"]
[Site "Chess.com"]
[Date "2023.12.26"]
[Round "9"]
[White "Ali_rastbod"]
[Black "JimDiGrease"]
[Result "0-1"]
[WhiteElo "2723"]
[BlackElo "2961"]
[TimeControl "180+1"]
[EndTime "9:44:16 PST"]
[Termination "JimDiGrease won by resignation"]

1. e4 {[%clk 0:02:34.5]} 1... c5 {[%clk 0:03:00.1]} 2. Nf3 {[%clk 0:02:32.3]}
2... e6 {[%clk 0:03:00.5]} 3. g3 {[%clk 0:02:32.1]} 3... Nc6 {[%clk 0:03:00.4]}
4. Bg2 {[%clk 0:02:32.2]} 4... Nf6 {[%clk 0:03:00.9]} 5. Qe2 {[%clk 0:02:32.8]}
5... d5 {[%clk 0:03:01.4]} 6. exd5 {[%clk 0:02:32.8]} 6... Nxd5 {[%clk
0:03:02.3]} 7. O-O {[%clk 0:02:33.6]} 7... Be7 {[%clk 0:03:02.7]} 8. Rd1 {[%clk
0:02:34.2]} 8... Qb6 {[%clk 0:03:03.3]} 9. Na3 {[%clk 0:02:31.1]} 9... O-O
{[%clk 0:03:02.1]} 10. Nc4 {[%clk 0:02:31.8]} 10... Qa6 {[%clk 0:03:01.9]} 11.
d3 {[%clk 0:02:32.4]} 11... b6 {[%clk 0:02:57.2]} 12. c3 {[%clk 0:02:29.7]}
12... Bb7 {[%clk 0:02:55.4]} 13. h4 {[%clk 0:02:30.1]} 13... h6 {[%clk
0:02:49.9]} 14. a4 {[%clk 0:02:23.4]} 14... Rad8 {[%clk 0:02:45.7]} 15. Bd2
{[%clk 0:02:22.9]} 15... Ba8 {[%clk 0:02:43.7]} 16. g4 {[%clk 0:02:20.4]} 16...
Qc8 {[%clk 0:02:26.4]} 17. g5 {[%clk 0:02:18.3]} 17... hxg5 {[%clk 0:02:27.3]}
18. hxg5 {[%clk 0:02:18.3]} 18... g6 {[%clk 0:02:23.3]} 19. Nce5 {[%clk
0:02:16.2]} 19... Nxe5 {[%clk 0:02:08]} 20. Nxe5 {[%clk 0:02:17.1]} 20... Qc7
{[%clk 0:02:07.9]} 21. Re1 {[%clk 0:02:07.8]} 21... Bd6 {[%clk 0:01:55.8]} 22.
Ng4 {[%clk 0:01:05.3]} 22... Nf4 {[%clk 0:01:53.3]} 23. Bxf4 {[%clk 0:01:01.2]}
23... Bxf4 {[%clk 0:01:54.2]} 24. Bxa8 {[%clk 0:00:52.8]} 24... Rxa8 {[%clk
0:01:55.1]} 25. Qf3 {[%clk 0:00:23]} 25... Bxg5 {[%clk 0:01:51]} 26. Kg2 {[%clk
0:00:23]} 26... Kg7 {[%clk 0:01:50.6]} 27. Re5 {[%clk 0:00:17]} 27... f5 {[%clk
0:01:38.4]} 28. Rxe6 {[%clk 0:00:08.7]} 28... fxg4 {[%clk 0:01:35.8]} 29. Qe4
{[%clk 0:00:07.9]} 29... Qf7 {[%clk 0:01:19.4]} 30. f4 {[%clk 0:00:05.8]} 30...
gxf3+ {[%clk 0:01:15.6]} 31. Kf2 {[%clk 0:00:06.3]} 31... Rae8 {[%clk
0:01:16.2]} 0-1

[Event "Early-Titled-Tuesday-Blitz-December-26-2023"]
[Site "Chess.com"]
[Date "2023.12.26"]
[Round "9"]
[White "Aslanov_Umid"]
[Black "IAgrest"]
[Result "1-0"]
[WhiteElo "2548"]
[BlackElo "2400"]
[TimeControl "180+1"]
[EndTime "9:44:18 PST"]
[Termination "Aslanov_Umid won on time"]

1. e4 {[%clk 0:03:00.9]} 1... e5 {[%clk 0:02:59.6]} 2. Nf3 {[%clk 0:03:01.1]}
2... Nc6 {[%clk 0:02:59.9]} 3. Bc4 {[%clk 0:03:01.7]} 3... Nf6 {[%clk 0:03:00]}
4. d3 {[%clk 0:03:01.8]} 4... h6 {[%clk 0:03:00.1]} 5. c3 {[%clk 0:03:01.7]}
5... d6 {[%clk 0:03:00.5]} 6. Nbd2 {[%clk 0:02:59]} 6... g5 {[%clk 0:03:00.4]}
7. Bb3 {[%clk 0:02:59.6]} 7... Bg7 {[%clk 0:03:00]} 8. Nc4 {[%clk 0:03:00.1]}
8... O-O {[%clk 0:02:58.5]} 9. Ne3 {[%clk 0:03:00.8]} 9... Ne7 {[%clk
0:02:55.3]} 10. h4 {[%clk 0:02:59.1]} 10... g4 {[%clk 0:02:54.6]} 11. Nh2 {[%clk
0:02:59.9]} 11... h5 {[%clk 0:02:51.5]} 12. Nhf1 {[%clk 0:02:59.7]} 12... c6
{[%clk 0:02:44.5]} 13. Ng3 {[%clk 0:02:59.6]} 13... d5 {[%clk 0:02:44.9]} 14.
exd5 {[%clk 0:02:56.3]} 14... cxd5 {[%clk 0:02:44.5]} 15. Bd2 {[%clk 0:02:57]}
15... Re8 {[%clk 0:02:30.6]} 16. Qc2 {[%clk 0:02:55.8]} 16... a5 {[%clk
0:02:16.4]} 17. a4 {[%clk 0:02:53.4]} 17... Be6 {[%clk 0:02:11.3]} 18. O-O-O
{[%clk 0:02:51.7]} 18... Qd7 {[%clk 0:02:07.6]} 19. Kb1 {[%clk 0:02:49.8]} 19...
b5 {[%clk 0:02:06.1]} 20. axb5 {[%clk 0:02:47.4]} 20... Qxb5 {[%clk 0:02:05]}
21. Ba4 {[%clk 0:02:47.7]} 21... Qb7 {[%clk 0:01:47.9]} 22. Bxe8 {[%clk
0:02:47.3]} 22... Rxe8 {[%clk 0:01:47.7]} 23. d4 {[%clk 0:02:47.1]} 23... e4
{[%clk 0:01:36.1]} 24. f3 {[%clk 0:02:47.5]} 24... a4 {[%clk 0:00:57.6]} 25.
fxg4 {[%clk 0:02:39.4]} 25... hxg4 {[%clk 0:00:55.3]} 26. h5 {[%clk 0:02:33.9]}
26... a3 {[%clk 0:00:50.6]} 27. b4 {[%clk 0:02:33.7]} 27... Ra8 {[%clk
0:00:37.6]} 28. h6 {[%clk 0:02:32.2]} 28... Bh8 {[%clk 0:00:36.9]} 29. Nh5
{[%clk 0:02:31.6]} 29... Nh7 {[%clk 0:00:26.9]} 30. Nf4 {[%clk 0:02:27.6]} 30...
Bd7 {[%clk 0:00:26.3]} 31. Rh5 {[%clk 0:02:22.6]} 31... f5 {[%clk 0:00:19.7]}
32. Rf1 {[%clk 0:02:20.4]} 32... Nf6 {[%clk 0:00:17]} 33. h7+ {[%clk 0:02:17.9]}
33... Kf7 {[%clk 0:00:15.5]} 34. Qa2 {[%clk 0:02:17.2]} 34... Bb5 {[%clk
0:00:11.8]} 35. Rf2 {[%clk 0:02:14.6]} 35... Nxh5 {[%clk 0:00:11.2]} 36. Nxh5
{[%clk 0:02:14.3]} 36... Kg6 {[%clk 0:00:11.5]} 37. Nf4+ {[%clk 0:02:14.4]}
37... Kxh7 {[%clk 0:00:11.9]} 38. Nfxd5 {[%clk 0:02:10.7]} 38... Nxd5 {[%clk
0:00:10.6]} 39. Qxd5 {[%clk 0:02:10.6]} 39... Bd3+ {[%clk 0:00:08.9]} 40. Ka1
{[%clk 0:02:08.6]} 40... Qxd5 {[%clk 0:00:08.7]} 41. Nxd5 {[%clk 0:02:09.5]}
41... a2 {[%clk 0:00:08.4]} 42. Rxf5 {[%clk 0:02:02.2]} 42... e3 {[%clk
0:00:08.5]} 43. Rh5+ {[%clk 0:02:02.8]} 43... Kg6 {[%clk 0:00:08]} 44. Nf4+
{[%clk 0:02:03.2]} 44... Kf7 {[%clk 0:00:05.3]} 45. Bxe3 {[%clk 0:02:03.7]}
45... Bb1 {[%clk 0:00:03.9]} 46. b5 {[%clk 0:01:54.2]} 46... Rc8 {[%clk
0:00:03.7]} 47. Bd2 {[%clk 0:01:52.4]} 47... Bf6 {[%clk 0:00:02.8]} 48. Rf5
{[%clk 0:01:50.4]} 1-0